Cogmind - Beta 17 @@@ ROGUE MODE // 2026.08.04 @ 15:01:09 Player: 4R-ZE3 Result: Self-destructed Performance ------------- Evolutions (2) 1000 Regions Visited (6) 1200 Robots Destroyed (52) 260 Value Destroyed (1637) 1637 Prototype IDs (1) 20 Alien Tech Used (0) 0 Bonus (200) 200 TOTAL SCORE: 4317 Bonus ------- Entered Garrisons 200 Cogmind --------- Core Integrity 403/550 Matter 116/300 Energy 100/100 System Corruption 0% Temperature Cool (0) Movement Core (400) Ox7 Location -8/Garrison Parts ------- > --- POWER (1) -------- (None) > --- PROPULSION (3) --- (None) > --- UTILITY (4) ------ Large Storage Unit Trap Scanner Signal Interpreter > --- WEAPON (3) ------- Light Assault Rifle Light Assault Rifle > --- INVENTORY (15) --- Airjet Airjet Airjet Airjet Airjet Airjet Improved Heat Sink Particle Gun Particle Gun Light Assault Rifle Light Assault Rifle Heavy Assault Rifle Mace Peak State ------------ > --- POWER ------------ Light Nuclear Core > --- PROPULSION ------- Light Treads Light Treads Improved Treads > --- UTILITY ---------- Large Storage Unit Trap Scanner Signal Interpreter > --- WEAPON ----------- Heavy Assault Rifle Autogun Autogun > --- INVENTORY -------- Airjet Airjet Airjet Airjet Airjet Improved Heat Sink Beam Rifle Assault Rifle Light Assault Rifle Light Assault Rifle Light Assault Rifle Light Assault Rifle Rocket Launcher Rocket Launcher Mace [Rating: 21] Favorites ----------- Power Light Nuclear Core Engine Ion Engine Power Core Light Nuclear Core Propulsion Light Treads Treads Light Treads Wheel Wheel Utility Large Storage Unit Device Improved Heat Sink Storage Large Storage Unit Processor Signal Interpreter Weapon Autogun Ballistic Gun Autogun Launcher Rocket Launcher Build | -11 -10 -10 -10 -9 -8 -8 ------- Run | Yrd Mat Min Exi Min Mat Gar Slots Evolved 4 | . . . . . 4 . Power . | . . . . . . . Propulsion 1 | . . . . . 1 . Utility 2 | . . . . . 2 . Weapon 1 | . . . . . 1 . Parts Attached 31 | 6 8 3 . 6 5 3 Power 4 | 1 1 1 . . 1 . Engine 1 | 1 . . . . . . Core 3 | . 1 1 . . 1 . Reactor . | . . . . . . . Propulsion 9 | 2 1 . . 4 2 . Treads 7 | 2 1 . . 2 2 . Leg . | . . . . . . . Wheel 2 | . . . . 2 . . Hover . | . . . . . . . Flight . | . . . . . . . Utility 7 | 1 4 1 . . 1 . Device 2 | . 1 . . . 1 . Storage 3 | 1 2 . . . . . Processor 2 | . 1 1 . . . . Hackware . | . . . . . . . Protection . | . . . . . . . Artifact . | . . . . . . . Weapon 11 | 2 2 1 . 2 1 3 Energy Gun . | . . . . . . . Energy Cannon . | . . . . . . . Ballistic Gun 9 | 2 2 1 . 1 1 2 Ballistic Cannon . | . . . . . . . Launcher 2 | . . . . 1 . 1 Special Weapon . | . . . . . . . Impact Weapon . | . . . . . . . Slashing Weapon . | . . . . . . . Piercing Weapon . | . . . . . . . Special Melee Weapon . | . . . . . . . Unidentified Prototypes 1 | . . . . . 1 . Parts Lost 17 | . 3 2 . 1 3 8 Power 2 | . 1 . . . . 1 Propulsion 7 | . 1 1 . 1 1 3 Utility 2 | . . 1 . . 1 . Weapon 6 | . 1 . . . 1 4 Highest Loss Streak 5 | . 2 1 . 1 1 5 To Critical Strikes . | . . . . . . . Average Backups 11 | 2 8 11 14 14 14 13 Power . | . 1 . 1 . . . Propulsion 1 | 1 1 . . 1 4 6 Utility 1 | . 1 1 2 2 1 1 Weapon 8 | . 4 9 11 10 7 6 Tool/Special . | . . . . . . . Unused Backups 26 | . 8 . . 4 3 11 Power 1 | . 1 . . . . . Propulsion 10 | . 3 . . . 1 6 Utility 1 | . . . . . 1 . Weapon 14 | . 4 . . 4 1 5 Tool/Special . | . . . . . . . Average Slot Usage (%) 87 | . 97 89 57 92 84 70 Engine 2 | . 12 . . . . . Core 9 | . . 14 14 14 9 1 Treads 19 | . 27 18 14 16 25 15 Wheel 1 | . . . . 4 . . Device 2 | . 8 . . . 5 9 Storage 13 | . 14 14 14 14 9 9 Processor 10 | . 3 13 14 14 9 9 Ballistic Gun 25 | . 27 28 . 27 26 22 Peak Build Rating 21 | 6 12 12 10 15 21 19 Average Rating 11 | 5 10 11 9 13 18 14 On Entrance 10 | . 6 10 12 9 15 18 Avg Prop Armor Cover (%) 11 | . . . . 11 . . Naked Turns . | . . . . . . . Heaviest Build 36 | 14 31 31 25 32 36 35 Greatest Support 63 | 40 40 40 20 43 63 60 Greatest Overweight (x) 10 | . . 1 1 10 . 1 Average Overweight (x) . | . . . 1 . . . Largest Inventory Capacity 15 | 8 15 15 15 15 15 15 Average Capacity 13 | 6 10 15 15 15 15 15 Most Carried 15 | 4 12 14 15 15 15 15 Average Carried 11 | 2 8 11 14 14 14 12 Final Capacity 15 | 8 15 15 15 15 15 15 Final Carried 15 | 4 11 14 15 15 15 13 Class Distribution -------------------- 87% | Mutant 7% | Scavenger-Skirmisher Dominant Class ---------------- Mutant | -10/Materials Mutant | -10/Mines Mutant | -10/Exiles Mutant | -9/Mines Scavenger-Skirmisher | -8/Materials Scavenger-Skirmisher | -8/Garrison Resources | -11 -10 -10 -10 -9 -8 -8 ----------- Run | Yrd Mat Min Exi Min Mat Gar Matter Collected 1419 | 199 281 323 . 348 157 111 Remotely . | . . . . . . . Salvage Created 1584 | . 518 270 . 375 209 212 Parts 108 | . 37 14 . 32 13 12 Haulers Intercepted 1 | . 1 . . . . . Recyclers Shooed 1 | . 1 . . . . . Parts Field Recycled . | . . . . . . . Retrieved Matter . | . . . . . . . Parts Self-Destructed . | . . . . . . . Prevented . | . . . . . . . Parts Restored . | . . . . . . . Kills | -11 -10 -10 -10 -9 -8 -8 ------- Run | Yrd Mat Min Exi Min Mat Gar Combat Hostiles Destroyed 47 | . 17 8 . 10 3 9 Guns 37 | . 17 8 . 7 3 2 AOE 10 | . . . . 3 . 7 Classes Destroyed 8 | . 5 . . 2 1 . Tunneler 1 | . . . . 1 . . Hauler 1 | . 1 . . . . . Recycler 2 | . . . . 1 1 . Watcher 1 | . 1 . . . . . Swarmer 19 | . 9 3 . 7 . . Grunt 25 | . 6 5 . 3 2 9 Sentry 1 | . . . . . 1 . Subdweller 2 | . 2 . . . . . Best Kill Streak 4 | . 4 3 . 4 3 4 Combat Bots Only 4 | . 4 3 . 4 1 4 Max Kills in Single Turn 3 | . 1 2 . 3 1 2 Gunslinging 1 | . . 1 . . . . Exploded 3 | . . . . 3 . 2 Melee . | . . . . . . . Uniques/NPCs Destroyed . | . . . . . . . Combat | -11 -10 -10 -10 -9 -8 -8 -------- Run | Yrd Mat Min Exi Min Mat Gar Hostile Shots Fired 203 | . 64 37 . 37 8 57 Missed 51 | . 24 9 . 9 1 8 Hits 152 | . 40 28 . 28 7 49 Projectile 152 | . 40 28 . 28 7 49 AOE 3 | . 3 . . . . . Critical Strikes 1 | . . . . . . 1 Damage Taken 2418 | . 641 370 . 250 190 967 Core 305 | . 50 53 . 55 . 147 Absorbed by Shields . | . . . . . . . Core Remaining (%) 68 | 100 . . . 36 . . Volleys Fired 134 | . 36 27 . 30 9 32 Largest 3 | . 2 2 . 2 3 3 Hottest 76 | . 46 46 . 56 69 76 Shots Fired 271 | . 72 54 . 64 27 54 Gun 251 | . 72 54 . 63 27 35 Cannon . | . . . . . . . Launcher 20 | . . . . 1 . 19 Special . | . . . . . . . Kinetic 251 | . 72 54 . 63 27 35 Thermal . | . . . . . . . Explosive 20 | . . . . 1 . 19 Electromagnetic . | . . . . . . . Robot Hit Streak 11 | . 11 11 . 8 9 8 Robot Miss Streak 4 | . 2 2 . 4 1 2 Penetration Max . | . . . . . . . Secondary Targets 4 | . 3 1 . . . . Max Gunslinging Chain 1 | . 1 1 . . . . Shots Hit Robots 172 | . 47 39 . 33 19 34 Core Hits 90 | . 24 13 . 19 9 25 Critical Kills 1 | . 1 . . . . . Critical Parts Destroyed 3 | . 2 1 . . . . Critical Strikes 5 | . 4 1 . . . . Destroy 5 | . 4 1 . . . . Melee Attacks . | . . . . . . . Impact . | . . . . . . . Slashing . | . . . . . . . Piercing . | . . . . . . . Sneak Attacks . | . . . . . . . Combat Hostiles . | . . . . . . . Follow-up Attacks . | . . . . . . . Damage Inflicted 3754 | . 673 571 . 745 269 1496 Guns 2394 | . 673 571 . 609 269 272 Cannons . | . . . . . . . Explosions 1360 | . . . . 136 . 1224 Melee . | . . . . . . . Ramming . | . . . . . . . Kinetic 2394 | . 673 571 . 609 269 272 Thermal . | . . . . . . . Explosive 1360 | . . . . 136 . 1224 Electromagnetic . | . . . . . . . Impact . | . . . . . . . Slashing . | . . . . . . . Piercing . | . . . . . . . Highest Corruption 1 | . 1 1 1 1 . . Average Corruption 1 | . 1 1 1 1 . . Corruption Purged . | . . . . . . . Corruption Blocked . | . . . . . . . Effects 12 | . 3 4 . 5 . . Message Errors 2 | . 1 1 . . . . Heat Flow Errors 2 | . 1 1 . . . . Energy Discharges 2 | . . 2 . . . . Data Loss (minor) 1 | . 1 . . . . . Misfires 4 | . . . . 4 . . Alerts 1 | . . . . 1 . . Overload Shots . | . . . . . . . Overflow Damage 50 | . . . . 5 . 45 Projectiles . | . . . . . . . Explosions 50 | . . . . 5 . 45 Melee . | . . . . . . . Knockbacks . | . . . . . . . Impact . | . . . . . . . Kinetic . | . . . . . . . Secondary . | . . . . . . . Self-Inflicted Damage 266 | . . . . . 90 176 Shots 5 | . . . . . 1 4 Rammed . | . . . . . . . Targets Rammed . | . . . . . . . Kicked . | . . . . . . . Crushed . | . . . . . . . Highest Temperature 261 | . 112 261 . 43 29 132 Average Temperature 39 | . 13 62 . 14 14 65 Received Heat Transfer 837 | . 102 189 . 33 54 459 Siege Activations . | . . . . . . . Martial Activations . | . . . . . . . Shielding Activations . | . . . . . . . Robots Disrupted . | . . . . . . . Combat Hostiles . | . . . . . . . Robots Corrupted . | . . . . . . . Combat Hostiles . | . . . . . . . Parts Fried . | . . . . . . . Impact Corruptions . | . . . . . . . Robots Melted . | . . . . . . . Combat Hostiles . | . . . . . . . Parts Melted . | . . . . . . . Heat Transferred . | . . . . . . . Parts Sabotaged . | . . . . . . . Parts Stolen . | . . . . . . . Parts Stripped . | . . . . . . . Power Chain Reactions . | . . . . . . . Alert | -11 -10 -10 -10 -9 -8 -8 ------- Run | Yrd Mat Min Exi Min Mat Gar Maximum Alert Level 1 | . . . . . . 1 Low Security (%) 99 | 100 100 100 . 100 100 92 Level 1 . | . . . . . . 7 Level 2 . | . . . . . . . Level 3 . | . . . . . . . Level 4 . | . . . . . . . Level 5 . | . . . . . . . High Security . | . . . . . . . Max Security . | . . . . . . . Peak Influence 268 | . 175 70 . 94 96 268 Initial 52 | . . 17 . . 9 52 Average 46 | . 107 14 . 21 26 102 Influence Increases 1307 | . 407 205 . 259 140 296 Destroy 0b10 Robot/C 900 | . 300 160 . 200 60 180 Destroy 0b10 Robot/NC 40 | . 10 . . 25 5 . Destroy Leader 144 | . 64 30 . 30 20 . Successful Hack 21 | . 17 . . . 4 . Disable Machine 60 | . . 15 . . 15 30 Anti-Garrison Action 50 | . . . . . . 50 Destroy Structure 62 | . 1 . . 4 21 36 Lose Combat Pursuer 30 | . 15 . . . 15 . Influence Decreases 1039 | . 362 248 2 235 84 108 Entered New Map 73 | . . 28 2 . 15 28 Time Decay 826 | . 332 210 . 225 59 . Lost Part 140 | . 30 10 . 10 10 80 Squads Dispatched 4 | . 2 . . . 2 . Investigation 1 | . 1 . . . . . Extermination . | . . . . . . . Reinforcement 2 | . 1 . . . 1 . Assault . | . . . . . . . Garrison 1 | . . . . . 1 . Intercept . | . . . . . . . Searches Triggered . | . . . . . . . Construction Impeded . | . . . . . . . Haulers Reinforced . | . . . . . . . Active Scanning Responses . | . . . . . . . Cargo Convoy Interrupts . | . . . . . . . Stealth | -11 -10 -10 -10 -9 -8 -8 --------- Run | Yrd Mat Min Exi Min Mat Gar Distress Signals 1 | . . . . 1 . . Communications Jammed . | . . . . . . . Distress Signals . | . . . . . . . Times Spotted 63 | . 30 9 . 10 5 9 Peak Tracking Total 5 | . 5 3 . 4 2 3 Tactical Retreats 4 | . 3 . . . 1 . Traps | -11 -10 -10 -10 -9 -8 -8 ------- Run | Yrd Mat Min Exi Min Mat Gar Traps Triggered 2 | . 2 . . . . . Indirectly . | . . . . . . . Trap Hack Attempts . | . . . . . . . Triggered . | . . . . . . . Disarmed . | . . . . . . . Reprogrammed . | . . . . . . . Reused . | . . . . . . . Traps Extracted . | . . . . . . . Installed . | . . . . . . . Triggered . | . . . . . . . Machines | -11 -10 -10 -10 -9 -8 -8 ---------- Run | Yrd Mat Min Exi Min Mat Gar Machines Disabled 5 | . . 1 . . 1 3 Max in Single Turn 2 | . . 1 . . 1 2 Garrison Relay 1 | . . . . . . 1 Machines Repaired . | . . . . . . . Machines Dismantled . | . . . . . . . Machines Sabotaged . | . . . . . . . Overloaded Fab Kills . | . . . . . . . Hacking | -11 -10 -10 -10 -9 -8 -8 --------- Run | Yrd Mat Min Exi Min Mat Gar Machines Accessed 7 | . 5 . 1 . 1 . Terminals 4 | . 4 . . . . . Fabricators . | . . . . . . . Repair Stations . | . . . . . . . Recycling Units 1 | . 1 . . . . . Scanalyzers . | . . . . . . . Garrison Access 1 | . . . . . 1 . Total Hacks 35 | . 11 . 23 . 1 . Successful 28 | . 4 . 23 . 1 . Failed 7 | . 7 . . . . . Catastrophic 1 | . 1 . . . . . Database Lockouts . | . . . . . . . Manual 8 | . 8 . . . . . Terminals 8 | . 8 . . . . . Fabricators . | . . . . . . . Repair Stations . | . . . . . . . Recycling Units 3 | . 3 . . . . . Scanalyzers . | . . . . . . . Garrison Access 1 | . . . . . 1 . Terminal Hacks 24 | . 1 . 23 . . . Record 23 | . . . 23 . . . Robot Analysis 1 | . 1 . . . . . Fabricator Hacks . | . . . . . . . Repair Station Hacks . | . . . . . . . Recycling Unit Hacks 1 | . 1 . . . . . Retrieve Components 1 | . 1 . . . . . Scanalyzer . | . . . . . . . Garrison Access Hacks 1 | . . . . . 1 . Unlock Access 1 | . . . . . 1 . Unauthorized Hacks 2 | . 2 . . . . . Terminals 2 | . 2 . . . . . Botnet 2 | . 2 . . . . . Fabricators . | . . . . . . . Repair Stations . | . . . . . . . Recycling Units . | . . . . . . . Scanalyzers . | . . . . . . . Garrison Access . | . . . . . . . Data Cores Recovered . | . . . . . . . Used . | . . . . . . . Hacking Detections 3 | . 3 . . . . . Full Trace Events . | . . . . . . . Feedback Events . | . . . . . . . Feedback Blocked . | . . . . . . . Robot Schematics Acquired . | . . . . . . . Robots Built . | . . . . . . . Authchips . | . . . . . . . Time . | . . . . . . . Total Robot Build Rating . | . . . . . . . Part Schematics Acquired . | . . . . . . . Parts Built . | . . . . . . . Authchips . | . . . . . . . Time . | . . . . . . . Total Part Build Rating . | . . . . . . . Part Studies Acquired . | . . . . . . . Parts Repaired . | . . . . . . . Time . | . . . . . . . Parts Recycled . | . . . . . . . Recycled Matter . | . . . . . . . Retrieved Matter . | . . . . . . . Retrieved Components 9 | . 9 . . . . . Parts Scanalyzed . | . . . . . . . Part Schematics Acquired . | . . . . . . . Parts Damaged . | . . . . . . . Bothacking | -11 -10 -10 -10 -9 -8 -8 ------------ Run | Yrd Mat Min Exi Min Mat Gar Used RIF Installer . | . . . . . . . Robots Hacked . | . . . . . . . Non-combat . | . . . . . . . Combat . | . . . . . . . Robot Hacks Applied . | . . . . . . . Relay Couplers Released 3 | . . . . . . 3 Machine Destruction 3 | . . . . . . 3 Fabnet Peak Effective % . | . . . . . . . Robots Rewired . | . . . . . . . Allies Hacked . | . . . . . . . Hacks Repelled . | . . . . . . . Allies | -11 -10 -10 -10 -9 -8 -8 -------- Run | Yrd Mat Min Exi Min Mat Gar Total Allies . | . . . . . . . Largest Group . | . . . . . . . Highest-Rated Group . | . . . . . . . Highest-Rated Ally . | . . . . . . . Total Orders . | . . . . . . . Ally Attacks . | . . . . . . . Total Damage . | . . . . . . . Kills . | . . . . . . . Allies Corrupted . | . . . . . . . Allies Melted . | . . . . . . . Intel | -11 -10 -10 -10 -9 -8 -8 ------- Run | Yrd Mat Min Exi Min Mat Gar Active Infowar (turns) 414 | . . . . . 136 278 Traps 414 | . . . . . 136 278 Robot Analysis Total 1 | . 1 . . . . . Derelict Logs Recovered 1 | . . . . 1 . . Drone Launches . | . . . . . . . Drone Recoveries . | . . . . . . . Exploration | -11 -10 -10 -10 -9 -8 -8 ------------- Run | Yrd Mat Min Exi Min Mat Gar Turns Passed 3713 | 91 838 1033 309 961 203 278 Spaces Moved 1715 | 48 422 441 129 472 97 106 Core 25 | 2 . . . 23 . . Treads 1574 | 46 422 441 129 333 97 106 Legs . | . . . . . . . Wheels 116 | . . . . 116 . . Hover . | . . . . . . . Flight . | . . . . . . . Fastest Speed 50 | 50 160 160 240 95 160 160 Average Speed 185 | 155 160 210 240 177 160 181 Slowest Speed 550 | 160 160 240 240 550 160 240 Overloaded Moves . | . . . . . . . Propulsion Burnouts . | . . . . . . . Robots Hopped . | . . . . . . . Potential Cave-ins . | . . . . . . . Cave-ins Triggered . | . . . . . . . Exploration Rate (%) 48 | 4 89 94 48 79 5 21 Regions Visited 6 Branch Regions 3 Pre-discovered Areas 1 | . . . 1 . . . Known Exits Taken 4 | . . 1 1 1 1 . Unknown Exits Taken 2 | 1 1 . . . . . Scrap Searched 3 | . . 2 . 1 . . Spaces Dug . | . . . . . . . Terrain Destroyed 89 | . . . . 6 24 59 Melee . | . . . . . . . Projectile . | . . . . . . . AOE 89 | . . . . 6 24 59 Terrain Rammed . | . . . . . . . Walls Destroyed . | . . . . . . . Machines Disabled . | . . . . . . . Actions | -11 -10 -10 -10 -9 -8 -8 --------- Run | Yrd Mat Min Exi Min Mat Gar Total 2042 | 62 525 502 130 551 127 145 Wait 92 | 5 31 28 . 24 4 . Move 1710 | 47 421 440 128 471 97 106 Hop . | . . . . . . . Pick Up 40 | 4 17 4 . 7 6 2 Fast Attach 11 | 6 1 . . 3 1 . Attach 15 | . 3 2 . 2 4 4 Detach 2 | . . . 1 1 . . Swap 12 | . 4 1 . 4 2 1 Drop 23 | . 12 . 1 6 4 . Fire 134 | . 36 27 . 30 9 32 Melee . | . . . . . . . Ram . | . . . . . . . Kick . | . . . . . . . Crush . | . . . . . . . Escape Stasis . | . . . . . . . Rewire 3 | . . . . 3 . . Trap . | . . . . . . . Miscellaneous . | . . . . . . . Route ------- -11/Scrapyard -10/Materials (discovered 4 exits: *Mat x2 / [*Min x2]) -10/Mines (discovered 4 exits: *Mat x2 / *Exi / *Sub) -10/Exiles -9/Mines (discovered 2 exits: *Mat x2) -8/Materials -8/Garrison History --------- Turn | Location | Event 15 | -11/Scrapyard | Discovered new exit (range 15) 92 | -11/Scrapyard | Entered Materials 134 | -10/Materials | Discovered new exit (range 15) 303 | -10/Materials | Build established: Mutant 476 | -10/Materials | Discovered new exit (range 14) 619 | -10/Materials | Discovered new exit (range 12) 679 | -10/Materials | Discovered new exit (range 5) 692 | -10/Materials | Derelicts attacked the area 930 | -10/Materials | Entered Mines 950 | -10/Mines | Met a Derelict bent on vengeance 962 | -10/Mines | Discovered new exit (range 4) 1120 | -10/Mines | Found a hidden stash of uninstalled traps 1207 | -10/Mines | Discovered new exit (range 6) 1273 | -10/Mines | Identified exit to Materials 1461 | -10/Mines | Discovered new exit (range 8) 1475 | -10/Mines | Identified exit to Subcaves 1665 | -10/Mines | Found a damaged Exp. Sensor Array with a note attached 1670 | -10/Mines | Found Prototype Device 1951 | -10/Mines | Deemed a non-threat by the Exiles lab entrance 1954 | -10/Mines | Discovered new exit (range 5) 1961 | -10/Mines | Identified exit to Exiles 1963 | -10/Mines | Entered Exiles 2020 | -10/Exiles | Met 8R-AWN 2063 | -10/Exiles | Met EX-HEX 2159 | -10/Exiles | Met EX-DEC 2168 | -10/Exiles | Learned location of Zion (-6) 2238 | -10/Exiles | Discovered new exit (range 14) 2269 | -10/Exiles | Identified exit to Mines 2272 | -10/Exiles | Entered Mines 2430 | -9/Mines | Discovered new exit (range 9) 2448 | -9/Mines | Core integrity fell below 50% 2705 | -9/Mines | Learned Materials interactive machine intel 2760 | -9/Mines | Joined a pair of Derelicts in attacking an 0b10 outpost 2870 | -9/Mines | Discovered new exit (range 4) 2874 | -9/Mines | Identified exit to Materials 2960 | -9/Mines | Assembled infested the area 3233 | -9/Mines | Entered Materials 3233 | -8/Materials | Evolved 4 slots: Propulsion x1, Utility x2, Weapon x1 3234 | -8/Materials | Loaded intel: 19 interactive machine locations 3285 | -8/Materials | Identified Exp. Sensor Array 3388 | -8/Materials | Garrison activated, responded to threat 3436 | -8/Materials | Identified exit to Garrison 3436 | -8/Materials | Entered Garrison 3456 | -8/Garrison | Triggered checkpoint 3511 | -8/Garrison | Lost 5 parts (1p1n3w) 3608 | -8/Garrison | Triggered checkpoint 3690 | -8/Garrison | Triggered checkpoint 3694 | -8/Garrison | Triggered checkpoint 3694 | -8/Garrison | Triggered checkpoint 3710 | -8/Garrison | Triggered checkpoint 3714 | -8/Garrison | Self-destructed Last Messages --------------- 03618_ Destroyed Aluminum Leg. 03620_ G-47 Trooper destroyed. 03624_ The unstable cave ceiling collapses. 03630_ Acquired 11 matter. 03632_ Acquired 7 matter. 03641_ The unstable cave ceiling collapses. 03690_ Garrison Door breached. 03690_ Beams of light sweep through the air. An alarm sounds. 03698_ Destroyed Aluminum Leg. 03698_ G-47 Trooper destroyed. 03700_ Destroyed Lgt. Nuclear Core. 03706_ G-47 Trooper destroyed. 03711_ The unstable cave ceiling collapses. 03712_ G-47 Trooper destroyed. 03712_ Rocket Launcher destroyed. 03712_ Destroyed Rocket Launcher. 03712_ Lgt. Treads destroyed. 03712_ Destroyed Lgt. Treads. 03713_ G-47 Trooper destroyed. Map ----- +----------------------------------------------------+ | ?????????????????????????????????????????????????? | | ?????????????????????????????????????????????????? | | ?????????????????????????????????????????????????? | | ?????????????????????????????????????????????????? | | ?????????????????????????????????????????????????? | | ?????????????????????????????????????????????????? | | ?????????????????????????????????????????????????? | | ?????????????????????????????????????????????????? | | ?????????????????????????????????????????????????? | | ?????????????????????????????????????????????????? | | ?????????????????????????????????????????????????? | | ????????????????????# ?????????????????????????? | | ???????????????????## ?????????????????????????? | | ??????????????? ?? ?????????????????????????? | | ????????????? ?? #????????????????????????? | | ?????????????? ?? #????????????????????????? | | ??????????? ?## ?# #????????????????????????? | | ??????????? # ## #????????????????????????? | | ?????????? "????????????????????????? | | ?????????? "????????????????????????? | | ??????????? g "????????????????????????? | | ???????????? %["????????????????????????? | | ?????????# # ## *%#####????????????????????? | | ????????## == #######??????????????? | | ???????? ^#??????????????? | | ???????? @ ^#??????????????? | | ?????????# = % ##### #??????????????? | | ??????????# ## # ## ##???# #??????????????? | | ??????????????#=???## ####????# #??????????????? | | ???????????????????## #???????# #??????????????? | | ??????????????????### ####????# #??????????????? | | ?????????????????## ## ##???# #??????????????? | | ?????????????????# # # ##???# #??????????????? | | ?????????????????### # ###???# #??????????????? | | ?????????????????# ###?????# #??????????????? | | ?????????????????# # #?????# #??????????????? | | ?????????????????## # #?????# #??????????????? | | ?????????????????# #?????# #??????????????? | | ?????????????????#### ###?????# #??????????????? | | ??????????????????#"# # #?????# #??????????????? | | ??????????????????# #??????# #??????????????? | | ??????????????????# ! #?????# #??????????????? | | ??????????????????# ! ###?????# #???????#####??? | | ??????????????????#"# #???????# #???????# #??? | | ??????????????????######???????# ######### #### | | ???????????????????????????????# | | ???????????????????????????????# | | ???????????????????????????????################### | | ?????????????????????????????????????????????????? | | ?????????????????????????????????????????????????? | +----------------------------------------------------+ Best States ------------- Heat Dissipation 39 Energy Generation 14 Energy Capacity 250 Matter Stores 300 Matter Capacity 300 Sight Range 16 Terrain Scan Density 10 Evasion (%) 41 Targeting Accuracy 5 Recoil Reduction 3 Item Schematics ----------------- None Robot Schematics ------------------ None Fabricated ------------ Nothing Repaired ---------- Nothing Studied --------- None Alien Tech Used ----------------- None Achievements -------------- None Challenges ------------ None Game ------ Seed TargetingVoltaicGriptreads Manual? 0 Play Time 00:16:39 Cumulative 165.1 hours Start 2026.08.04 @ 14:20:35 End 2026.08.04 @ 15:01:09 Sessions 2 Manual Loads 0 Difficulty Rogue Special Mode None Game No. 172 Rogue 118 Adventurer 54 Explorer 0 Win Type - Total 7 Types 3/0/1/1/0/0/0/1/0/1 Lore% 64 Gallery% 57 Achievement% 54 Wizard Run 0 Options --------- Layout 1 ASCII 0 Keyboard 0 Movement Mouse Keybinds 1 Fullscreen 2 Font 32/Tamsyn Map View 50x35 Zoom Use 0% Tactical HUD 1 Map Filters NONE Filters NONE Steam 1 RUN: 234da861-ae16-4685-a113-3d8452d81321